bitfinex-derivatives/quotes_BNBF0:USTF0_20250810
["timestamp","ask_amount","ask_price","bid_price","bid_amount"]
[1754788069470,0.84659568,806.3,804.43,2.75808735]
[1754788069671,0.84659568,806.29,804.43,2.75808735]
[1754788069873,0.84659568,806.28,804.43,2.75808735]
[1754788070168,0.84659568,806.27,804.43,2.75808735]
[1754788070373,0.84659568,806.26,804.43,2.75808735]
[1754788070673,0.84659568,806.25,804.41,2.75808735]
[1754788070871,0.84659568,806.24,804.41,2.75808735]
[1754788071070,0.84659568,806.23,804.36,2.75808735]
[1754788071270,0.84659568,806.22,804.36,2.75808735]
[1754788071575,0.84659568,806.21,804.39,2.75808735]
[1754788071877,0.84659568,806.2,804.39,2.75808735]
[1754788072177,0.21623435,805.76,804.39,2.75808735]
[1754788072676,0.21623435,805.76,804.38,2.75808735]
[1754788073176,0.21623435,805.76,804.33,2.75808735]
[1754788074772,0.21623435,805.76,804.29,1.549]
[1754788078978,0.5,806.45,804.29,1.549]
[1754788079183,0.21619674,805.85,804.29,1.549]
[1754788080883,0.21619674,805.85,804.31,3.85178554]
[1754788081084,0.21619674,805.85,804.59,2.75808735]
[1754788081584,0.21619674,805.85,804.57,2.75808735]
[1754788082586,0.21619674,805.85,804.52,2.75808735]
[1754788083182,0.21619674,805.85,804.47,2.75808735]
[1754788083588,0.21619674,805.85,804.44,2.75808735]
[1754788084090,0.21619674,805.85,804.35,2.75808735]
[1754788085387,0.21619674,805.85,804.34,2.75808735]
[1754788085792,0.21619674,805.85,804.31,2.75808735]
[1754788086290,0.21619674,805.85,804.3,2.75808735]
[1754788086988,0.83276175,806.57,804.3,2.75808735]
[1754788087192,0.84360736,806.56,804.3,2.75808735]
[1754788087393,0.21616585,806.04,804.29,1.549]
[1754788092096,0.21616585,806.04,804.29,4.30708735]
[1754788092692,0.83175143,806.9,804.29,1.549]
[1754788092892,0.21613833,806.17,804.29,1.549]
[1754788097096,0.21613833,806.17,804.3,2.75808735]
[1754788097698,0.21613833,806.17,804.29,1.549]
[1754788101896,0.21613833,806.17,804.31,2.75808735]
[1754788102799,0.21613833,806.17,804.29,1.549]
[1754788103499,0.21613833,806.17,804.35,2.75808735]
[1754788104501,0.21613833,806.17,804.38,2.75808735]
[1754788104902,0.21613833,806.17,804.39,2.75808735]
[1754788105698,0.21613833,806.17,804.33,2.75808735]
[1754788106198,0.21613833,806.17,804.3,2.75808735]
[1754788106601,0.21613833,806.17,804.33,2.75808735]
[1754788107501,0.21613833,806.17,804.31,2.75808735]
[1754788108505,0.21613833,806.17,804.29,4.30708735]
[1754788109105,0.21613833,806.17,804.31,2.75808735]
[1754788109702,0.21613833,806.17,804.38,2.75808735]
[1754788110107,0.21613833,806.17,804.44,2.75808735]
[1754788110708,0.21613833,806.17,804.46,2.75808735]
[1754788111208,0.21613833,806.17,804.48,2.75808735]
[1754788111703,0.21613833,806.17,804.49,2.75808735]
[1754788112409,0.21613833,806.17,804.51,2.75808735]
[1754788113308,0.21613833,806.17,804.46,2.75808735]
[1754788113808,0.21613833,806.17,804.47,2.75808735]
[1754788114407,0.21613833,806.17,804.5,2.75808735]
[1754788115005,0.21613833,806.17,804.69,2.75808735]
[1754788115405,0.21613833,806.17,804.71,2.75808735]
[1754788116111,0.21613833,806.17,804.84,2.75808735]
[1754788116508,0.21613833,806.17,804.85,2.75808735]
[1754788116906,0.21613833,806.17,804.84,2.75808735]
[1754788117604,0.21613833,806.17,804.86,2.75808735]
[1754788117909,0.21613833,806.17,804.87,2.75808735]
[1754788118506,0.21613833,806.17,804.88,2.75808735]
[1754788119211,0.21613833,806.17,804.92,2.75808735]
[1754788119606,0.21613833,806.17,804.96,2.75808735]
[1754788120209,0.21613833,806.17,804.89,2.75808735]
[1754788120608,0.21613833,806.17,804.96,2.75808735]
[1754788121213,0.5,806.88,804.96,2.75808735]
[1754788121410,0.21605848,806.33,804.96,2.75808735]
[1754788121612,0.21605848,806.33,805.05,2.75808735]
[1754788122110,0.21605848,806.33,805.06,2.75808735]
[1754788122611,0.21605848,806.33,805.08,2.75808735]
[1754788123216,0.21605848,806.33,805.06,2.75808735]
[1754788123715,0.21605848,806.33,805.11,2.75808735]
[1754788124211,0.21605848,806.33,805.1,2.75808735]
[1754788124609,0.344,807.1,805.1,2.75808735]
[1754788124810,0.216033,806.33,805.1,2.75808735]
[1754788125010,0.83100344,807.22,805.1,2.75808735]
[1754788125215,0.21603501,806.33,805.09,2.75808735]
[1754788125612,0.344,807.1,805.09,2.75808735]
[1754788125816,0.21603501,806.33,805.1,2.75808735]
[1754788126016,0.293,807.05,805.1,2.75808735]
[1754788126216,0.293,807.05,804.94,1.04]
[1754788126217,0.84363853,807.04,805.16,2.75808735]
[1754788126417,0.21603501,806.33,805.16,2.75808735]
[1754788126717,0.293,807.05,805.16,2.75808735]
[1754788126912,0.21603501,806.33,805.17,2.75808735]
[1754788127112,0.293,807.05,805.17,2.75808735]
[1754788127314,0.84353829,807.04,805.16,2.75808735]
[1754788127516,0.21603367,806.33,805.16,2.75808735]
[1754788127814,0.344,807.1,805.22,2.75808735]
[1754788128118,0.21603434,806.58,805.22,2.75808735]
[1754788130517,0.21603434,806.58,805.2,2.75808735]
[1754788131522,0.21603434,806.58,805.22,2.75808735]
[1754788132020,0.21603434,806.58,805.23,2.75808735]
[1754788132521,0.21603434,806.58,805.24,2.75808735]
[1754788133717,0.21603434,806.58,805.13,2.75808735]
[1754788134221,0.21603434,806.58,805.14,2.75808735]
[1754788134620,0.21603434,806.58,805.16,2.75808735]
[1754788135316,0.21603434,806.58,805.07,2.75808735]
[1754788135716,0.21603434,806.58,804.99,2.75808735]
[1754788136321,0.21603434,806.58,805.0,2.75808735]
[1754788137219,0.21603434,806.58,805.2,2.75808735]
[1754788137723,0.21603434,806.58,805.22,2.75808735]
[1754788138424,0.21603434,806.58,805.2,2.75808735]
[1754788141526,0.21603434,806.58,805.21,2.75808735]
[1754788142024,0.21603434,806.58,804.99,2.75808735]
[1754788142526,0.21603434,806.58,804.94,1.04]
[1754788143724,0.21603434,806.58,805.02,2.75808735]
[1754788144627,0.21603434,806.58,805.01,2.75808735]
[1754788145329,0.21603434,806.58,804.94,1.04]
[1754788151438,0.21603434,806.58,804.95,2.75808735]
[1754788152535,0.21603434,806.58,804.94,3.79808735]
[1754788153634,0.21603434,806.58,805.11,2.75808735]
[1754788154238,0.21603434,806.58,805.12,2.75808735]
[1754788154736,0.21603434,806.58,805.11,2.75808735]
[1754788155137,0.21603434,806.58,805.12,2.75808735]
[1754788155735,0.21603434,806.58,805.13,2.75808735]
[1754788156734,0.21603434,806.58,805.12,2.75808735]
[1754788158441,0.21603434,806.58,805.24,2.75808735]
[1754788159538,0.21603434,806.58,805.27,2.75808735]
[1754788160036,0.21603434,806.58,804.94,1.04]
[1754788160037,0.21603434,806.58,805.25,2.75808735]
[1754788160436,0.5,807.37,805.27,2.75808735]
[1754788160637,0.2159472,806.77,805.27,2.75808735]
[1754788161042,0.2159472,806.77,805.29,2.75808735]
[1754788162541,0.2159472,806.77,805.28,2.75808735]
[1754788163045,0.2159472,806.77,805.27,2.75808735]
[1754788163648,0.2159472,806.77,805.29,2.75808735]
[1754788164143,0.2159472,806.77,805.19,2.75808735]
[1754788164542,0.2159472,806.77,805.26,2.75808735]
[1754788165147,0.2159472,806.77,805.27,2.75808735]
[1754788165643,0.2159472,806.77,805.28,2.75808735]
[1754788166848,0.2159472,806.77,805.38,2.75808735]
[1754788167249,0.2159472,806.77,805.41,2.75808735]
[1754788167849,0.2159472,806.77,805.08,3.85178554]
[1754788167850,0.2159472,806.77,805.43,2.75808735]
[1754788168346,0.2159472,806.77,805.44,2.75808735]
[1754788168845,0.2159472,806.77,805.45,2.75808735]
[1754788169444,0.2159472,806.77,805.48,2.75808735]
[1754788170352,0.2159472,806.77,805.5,2.75808735]
[1754788171450,0.2159472,806.77,805.53,2.75808735]
[1754788172053,0.2159472,806.77,805.55,2.75808735]
[1754788172555,0.2159472,806.77,805.53,2.75808735]
[1754788173055,0.2159472,806.77,805.61,2.75808735]
[1754788173452,0.2159472,806.77,805.4,2.75808735]
[1754788174557,0.2159472,806.77,805.42,2.75808735]
[1754788175654,0.2159472,806.77,805.45,2.75808735]
[1754788176559,0.2159472,806.77,805.46,2.75808735]
[1754788177054,0.2159472,806.77,805.44,2.75808735]
[1754788177653,0.2159472,806.77,805.46,2.75808735]
[1754788178259,0.2159472,806.77,805.43,2.75808735]
[1754788178759,0.2159472,806.77,805.45,2.75808735]
[1754788179262,0.2159472,806.77,805.35,2.75808735]
[1754788179755,0.2159472,806.77,805.37,2.75808735]
[1754788180360,0.2159472,806.77,805.24,1.463]
[1754788180361,0.2159472,806.77,805.4,2.75808735]
[1754788180860,0.2159472,806.77,805.36,2.75808735]
[1754788181264,0.2159472,806.77,805.38,2.75808735]
[1754788182362,0.2159472,806.77,805.48,2.75808735]
[1754788182863,0.2159472,806.77,805.49,2.75808735]
[1754788183468,0.2159472,806.77,805.7,2.75808735]
[1754788183967,0.2159472,806.77,805.72,2.75808735]
[1754788184465,0.2159472,806.77,805.73,2.75808735]
[1754788185569,0.2159472,806.77,805.74,2.75808735]
[1754788185965,0.2159472,806.77,805.68,2.75808735]
[1754788186482,0.2159472,806.77,805.69,2.75808735]
[1754788188171,0.2159472,806.77,805.7,2.75808735]
[1754788188670,0.2159472,806.77,805.65,2.75808735]
[1754788189165,0.2159472,806.77,805.66,2.75808735]
[1754788189567,0.2159472,806.77,805.58,2.75808735]
[1754788190570,0.2159472,806.77,805.54,2.75808735]
[1754788191571,0.2159472,806.77,805.52,2.75808735]
[1754788192066,0.2159472,806.77,805.41,2.75808735]
[1754788193675,0.2159472,806.77,805.37,2.75808735]
[1754788194177,0.2159472,806.77,805.36,2.75808735]
[1754788194776,0.2159472,806.77,805.37,2.75808735]
[1754788195774,0.2159472,806.77,805.48,2.75808735]
[1754788196277,0.2159472,806.77,805.45,2.75808735]
[1754788196776,0.2159472,806.77,805.19,1.584]
[1754788206887,0.2159472,806.77,805.3,2.75808735]
[1754788207389,0.2159472,806.77,805.33,2.75808735]
[1754788208283,0.2159472,806.77,805.29,2.75808735]
[1754788208888,0.2159472,806.77,805.3,2.75808735]
[1754788209390,0.2159472,806.77,805.29,2.75808735]
[1754788209889,0.2159472,806.77,805.35,2.75808735]
[1754788210490,0.2159472,806.77,805.34,2.75808735]
[1754788211489,0.2159472,806.77,805.33,2.75808735]
[1754788211890,0.2159472,806.77,805.19,1.584]
[1754788211891,0.2159472,806.77,805.35,2.75808735]
[1754788213188,0.2159472,806.77,805.36,2.75808735]
[1754788213692,0.2159472,806.77,805.35,2.75808735]
[1754788214192,0.2159472,806.77,805.36,2.75808735]
[1754788214592,0.2159472,806.77,805.35,2.75808735]
[1754788215692,0.2159472,806.77,805.34,2.75808735]
[1754788216292,0.2159472,806.77,805.35,2.75808735]
[1754788216788,0.2159472,806.77,805.33,2.75808735]
[1754788217793,0.2159472,806.77,805.32,2.75808735]
[1754788218390,0.2159472,806.77,805.19,1.584]
[1754788222493,0.84505743,806.76,805.19,1.584]
[1754788222694,0.2159472,806.77,805.19,1.584]
[1754788222991,0.84512079,806.76,805.19,1.584]
[1754788223291,0.84512113,806.75,804.94,2.75808735]
[1754788223593,0.84512113,806.74,804.68,2.75808735]
[1754788223790,0.84512113,806.73,804.68,2.75808735]
[1754788223991,0.84512113,806.72,804.68,2.75808735]
[1754788224193,0.84512113,806.71,804.68,2.75808735]
[1754788224391,0.84512113,806.7,804.68,2.75808735]
[1754788224591,0.84512113,806.69,804.69,2.75808735]
[1754788224791,0.84512113,806.68,804.69,2.75808735]
[1754788224991,0.84512113,806.67,804.78,2.75808735]
[1754788225194,0.84512113,806.66,804.78,2.75808735]
[1754788225395,0.84512113,806.65,804.78,2.75808735]
[1754788225596,0.84512113,806.64,804.83,2.75808735]
[1754788225795,0.84512113,806.63,804.83,2.75808735]
[1754788225995,0.84512113,806.62,804.83,2.75808735]
[1754788226197,0.84512113,806.61,804.83,2.75808735]
[1754788226495,0.84512113,806.6,804.83,2.75808735]
[1754788226694,0.84512113,806.59,804.83,2.75808735]
[1754788226895,0.2159472,806.77,804.83,2.75808735]
[1754788227097,0.8449913,806.76,804.84,1.64]
[1754788227298,0.8449913,806.75,804.84,1.64]
[1754788227499,0.8449913,806.74,804.84,1.64]
[1754788227696,0.8449913,806.73,804.84,1.64]
[1754788227900,0.8449913,806.72,804.84,1.64]
[1754788228101,0.8449913,806.71,804.84,1.64]
[1754788228298,0.8449913,806.7,804.84,1.64]
[1754788228501,0.8449913,806.69,804.84,1.64]
[1754788228699,0.8449913,806.68,804.84,1.64]
[1754788228902,0.8449913,806.67,804.84,1.64]
[1754788229101,0.2159472,806.77,804.88,3.85178554]
[1754788229305,0.84494379,806.76,805.16,2.75808735]
[1754788229604,0.84494379,806.75,805.16,2.75808735]
[1754788229804,0.84494379,806.74,805.16,2.75808735]
[1754788230005,0.84494379,806.73,805.16,2.75808735]
[1754788230303,0.84494379,806.72,805.16,2.75808735]
[1754788230501,0.84494379,806.71,805.16,2.75808735]
[1754788230703,0.84494379,806.7,805.2,2.75808735]
[1754788230902,0.84494379,806.69,805.2,2.75808735]
[1754788231207,0.84494379,806.68,805.2,2.75808735]
[1754788231406,0.2159472,806.77,805.2,2.75808735]
[1754788231407,0.84494379,806.67,805.2,2.75808735]
[1754788231605,0.2159472,806.77,805.2,2.75808735]
[1754788231810,0.84503003,806.76,805.22,2.75808735]
[1754788232106,0.84503003,806.75,805.22,2.75808735]
[1754788232405,0.84503003,806.74,805.22,2.75808735]
[1754788232608,0.84503003,806.73,805.22,2.75808735]
[1754788232804,0.84503003,806.72,805.25,2.75808735]
[1754788233006,0.84503003,806.71,805.25,2.75808735]
[1754788233308,0.2159472,806.77,805.53,2.75808735]
[1754788234009,0.2159472,806.77,805.54,2.75808735]
[1754788234404,0.2159472,806.77,805.39,2.75808735]
[1754788234908,0.2159472,806.77,805.4,2.75808735]
[1754788235504,0.2159472,806.77,805.43,2.75808735]
[1754788235907,0.2159472,806.77,805.4,2.75808735]
[1754788236408,0.2159472,806.77,805.42,2.75808735]
[1754788237007,0.2159472,806.77,805.43,2.75808735]
[1754788237609,0.2159472,806.77,805.47,2.75808735]
[1754788238612,0.2159472,806.77,805.5,2.75808735]
[1754788239607,0.2159472,806.77,805.52,2.75808735]
[1754788240006,0.2159472,806.77,805.51,2.75808735]
[1754788240612,0.2159472,806.77,805.52,2.75808735]
[1754788241609,0.2159472,806.77,805.53,2.75808735]
[1754788242813,0.2159472,806.77,805.54,2.75808735]
[1754788243215,0.2159472,806.77,805.47,2.75808735]
[1754788244316,0.2159472,806.77,805.58,2.75808735]
[1754788244818,0.2159472,806.77,805.57,2.75808735]
[1754788245418,0.2159472,806.77,805.55,2.75808735]
[1754788245818,0.2159472,806.77,805.44,2.75808735]
[1754788246320,0.2159472,806.77,805.45,2.75808735]
[1754788246819,0.2159472,806.77,805.46,2.75808735]
[1754788247419,0.84792441,806.76,805.48,2.75808735]
[1754788247718,0.84792441,806.75,805.48,2.75808735]
[1754788247925,0.2159472,806.77,805.48,2.75808735]
[1754788248116,0.84792438,806.76,805.48,2.75808735]
[1754788248313,0.84792438,806.75,805.48,2.75808735]
[1754788248519,0.84792438,806.74,805.49,2.75808735]
[1754788248717,0.2159472,806.77,805.49,2.75808735]
[1754788248919,0.84817163,806.76,805.49,2.75808735]
[1754788249116,0.84817163,806.75,805.49,2.75808735]
[1754788249316,0.84817163,806.74,805.49,2.75808735]
[1754788249517,0.2159472,806.77,805.2,3.85178554]
[1754788249518,0.84817163,806.73,805.5,2.75808735]
[1754788249716,0.2159472,806.77,805.5,2.75808735]
[1754788250021,0.2159472,806.77,804.84,1.64]
[1754788250022,0.84836068,806.76,805.42,2.75808735]
[1754788250216,0.84836068,806.75,805.42,2.75808735]
[1754788250420,0.84836068,806.74,805.42,2.75808735]
[1754788250619,0.84836068,806.73,805.39,2.75808735]
[1754788250819,0.2159472,806.77,805.39,2.75808735]
[1754788251018,0.84841216,806.76,805.39,2.75808735]
[1754788251222,0.84841216,806.75,805.35,2.75808735]
[1754788251417,0.84841216,806.74,805.35,2.75808735]
[1754788251722,0.84841216,806.73,805.34,2.75808735]
[1754788251927,0.2159472,806.77,805.34,2.75808735]
[1754788252118,0.84842804,806.76,805.33,2.75808735]
[1754788252320,0.84842804,806.75,805.33,2.75808735]
[1754788252519,0.84842804,806.74,805.33,2.75808735]
[1754788252718,0.84842804,806.73,805.23,2.75808735]
[1754788252921,0.84842804,806.72,805.23,2.75808735]
[1754788253121,0.2159472,806.77,805.23,2.75808735]
[1754788253323,0.84844662,806.76,805.23,2.75808735]
[1754788253521,0.84844662,806.75,805.23,2.75808735]
[1754788253719,0.84844662,806.74,805.21,2.75808735]
[1754788253919,0.84844662,806.73,805.21,2.75808735]
[1754788254118,0.84844662,806.72,805.21,2.75808735]
[1754788254419,0.84844662,806.71,805.22,2.75808735]
[1754788254622,0.2159472,806.77,805.22,2.75808735]
[1754788254822,0.84849117,806.76,805.22,2.75808735]
[1754788255021,0.84849117,806.75,805.22,2.75808735]
[1754788255223,0.84849117,806.74,805.16,2.75808735]
[1754788255423,0.84849117,806.73,805.16,2.75808735]
[1754788255719,0.84849117,806.72,805.18,2.75808735]
[1754788255918,0.84849117,806.71,805.18,2.75808735]
[1754788256123,0.84849117,806.7,805.18,2.75808735]
[1754788256423,0.84849117,806.69,805.19,2.75808735]
[1754788256721,0.2159472,806.77,805.19,2.75808735]
[1754788256722,0.84849117,806.68,805.19,2.75808735]
[1754788256918,0.2159472,806.77,804.84,1.64]
[1754788256919,0.84849117,806.67,805.2,2.75808735]
[1754788257123,0.84849117,806.66,805.2,2.75808735]
[1754788257425,0.84849117,806.65,805.07,2.75808735]
[1754788257624,0.2159472,806.77,805.07,2.75808735]
[1754788257625,0.84849117,806.64,805.07,2.75808735]
[1754788257823,0.84849117,806.63,805.07,2.75808735]
[1754788258124,0.84849117,806.62,805.05,2.75808735]
[1754788258419,0.84849117,806.61,805.03,2.75808735]
[1754788258626,0.84849117,806.6,805.03,2.75808735]
[1754788258924,0.84849117,806.59,805.03,2.75808735]
[1754788259219,0.84849117,806.58,805.03,2.75808735]
[1754788259424,0.84849117,806.57,805.03,2.75808735]
[1754788259622,0.84849117,806.56,805.03,2.75808735]
[1754788259820,0.2159472,806.77,805.03,2.75808735]
[1754788260124,0.84825392,806.76,805.03,2.75808735]
[1754788260324,0.2159472,806.77,805.03,2.75808735]
[1754788260325,0.84825392,806.75,805.03,2.75808735]
[1754788260525,0.84825392,806.74,805.03,2.75808735]
[1754788260722,0.84825392,806.73,805.03,2.75808735]
[1754788260927,0.84825392,806.72,805.03,2.75808735]
[1754788261125,0.84825392,806.72,804.84,1.64]
[1754788261126,0.84825392,806.71,805.01,2.75808735]
[1754788261326,0.84825392,806.7,805.01,2.75808735]
[1754788261524,0.84825392,806.69,805.01,2.75808735]
[1754788261728,0.84825392,806.68,805.0,2.75808735]
[1754788262023,0.84825392,806.67,805.0,2.75808735]
[1754788262222,0.84825392,806.66,804.99,2.75808735]
[1754788262427,0.84825392,806.65,804.99,2.75808735]
[1754788262623,0.84825392,806.64,804.99,2.75808735]
[1754788262825,0.84825392,806.64,804.84,1.64]
[1754788262826,0.84825392,806.63,804.98,2.75808735]
[1754788263027,0.84825392,806.62,804.98,2.75808735]
[1754788263324,0.2159472,806.77,804.98,2.75808735]
[1754788263522,0.84797395,806.76,804.98,2.75808735]
[1754788263727,0.84797395,806.75,805.05,2.75808735]
[1754788263928,0.84797395,806.74,805.05,2.75808735]
[1754788264128,0.84797395,806.73,805.05,2.75808735]
[1754788264325,0.84797395,806.72,805.05,2.75808735]
[1754788264525,0.84797395,806.71,805.05,2.75808735]
[1754788264725,0.84797395,806.7,805.05,2.75808735]
[1754788264925,0.84797395,806.69,805.05,2.75808735]
[1754788265125,0.84797395,806.68,805.05,2.75808735]
[1754788265327,0.84797395,806.67,805.05,2.75808735]
[1754788265526,0.84797395,806.66,805.05,2.75808735]
[1754788265726,0.84797395,806.65,805.05,2.75808735]
[1754788265930,0.84797395,806.64,805.05,2.75808735]
[1754788266132,0.84797395,806.63,805.05,2.75808735]
[1754788266428,0.2159472,806.77,804.84,1.64]
[1754788266429,0.84797395,806.62,805.16,2.75808735]
[1754788266630,0.84797395,806.61,805.16,2.75808735]
[1754788266831,0.84797395,806.6,805.15,2.75808735]
[1754788267028,0.2159472,806.77,805.15,2.75808735]
[1754788267231,0.84776027,806.76,805.15,2.75808735]
[1754788267432,0.84776027,806.75,805.2,2.75808735]
[1754788267631,0.84776027,806.74,805.2,2.75808735]
[1754788267929,0.84776027,806.73,805.19,2.75808735]
[1754788268133,0.84776027,806.72,805.19,2.75808735]
[1754788268332,0.84776027,806.71,805.19,2.75808735]
[1754788268633,0.84776027,806.7,805.19,2.75808735]
[1754788268832,0.84776027,806.69,805.19,2.75808735]
[1754788269028,0.84776027,806.68,805.18,2.75808735]
[1754788269333,0.84776027,806.67,805.18,2.75808735]
[1754788269629,0.84776027,806.66,805.18,2.75808735]
[1754788269828,0.84776027,806.65,805.18,2.75808735]
[1754788270035,0.84776027,806.64,805.18,2.75808735]
[1754788270331,0.84776027,806.63,805.18,2.75808735]
[1754788270533,0.84776027,806.62,805.16,2.75808735]
[1754788270833,0.2159472,806.77,805.16,2.75808735]
[1754788271033,0.84745957,806.76,805.17,2.75808735]
[1754788271333,0.84745957,806.75,805.17,2.75808735]
[1754788271632,0.84745957,806.74,805.15,2.75808735]
[1754788271831,0.84745957,806.73,805.15,2.75808735]
[1754788272031,0.84745957,806.72,805.15,2.75808735]
[1754788272229,0.84745957,806.71,805.15,2.75808735]
[1754788272432,0.84745957,806.7,805.15,2.75808735]
[1754788272630,0.84745957,806.69,805.14,2.75808735]
[1754788272831,0.84745957,806.68,805.14,2.75808735]
[1754788273131,0.84745957,806.67,805.1,2.75808735]
[1754788273337,0.83509516,806.64,805.1,2.75808735]
[1754788273532,0.83509516,806.57,805.1,2.75808735]
[1754788273737,0.83509516,806.57,804.77,2.75808735]
[1754788274237,0.83509516,806.57,804.23,5.50255077]
[1754788274238,0.83509516,806.57,804.44,3.85178554]
[1754788274532,0.84745957,806.56,804.64,1.39]
[1754788274736,0.84745957,806.55,804.64,1.39]
[1754788274936,0.84745957,806.54,804.64,1.39]
[1754788275137,0.84745957,806.53,804.64,1.39]
[1754788275332,0.84745957,806.52,804.64,1.39]
[1754788275535,0.84745957,806.51,804.64,1.39]
[1754788275734,0.84745957,806.5,804.64,1.39]
[1754788275934,0.84745957,806.49,804.64,1.39]
[1754788276134,0.84745957,806.48,804.64,1.39]
[1754788276438,0.84745957,806.47,804.64,1.39]
[1754788276632,0.84745957,806.46,804.64,1.39]
[1754788276837,0.84745957,806.45,804.64,1.39]
[1754788277134,0.84745957,806.44,804.64,1.39]
[1754788277438,0.84745957,806.43,804.64,1.39]
[1754788277633,0.84745957,806.42,804.64,1.39]
[1754788277836,0.84745957,806.41,804.64,1.39]
[1754788278034,0.84745957,806.4,804.64,1.39]
[1754788278236,0.84745957,806.39,804.64,1.39]
[1754788278435,0.84745957,806.38,804.64,1.39]
[1754788278639,0.84745957,806.37,804.64,1.39]
[1754788278839,0.84745957,806.36,804.64,1.39]
[1754788279136,0.84745957,806.35,804.64,1.39]
[1754788279436,0.84745957,806.34,804.64,1.39]
[1754788279636,0.5,806.64,804.64,1.39]
[1754788279836,0.84629852,806.63,804.73,2.75808735]
[1754788280036,0.84629852,806.62,804.73,2.75808735]
[1754788280236,0.84629852,806.61,804.73,2.75808735]
[1754788280436,0.84629852,806.6,804.72,2.75808735]
[1754788280636,0.84629852,806.59,804.72,2.75808735]
[1754788280936,0.84629852,806.58,804.68,2.75808735]
[1754788281235,0.84629852,806.57,804.68,2.75808735]
[1754788281440,0.84629852,806.56,804.67,2.75808735]
[1754788281640,0.84629852,806.55,804.67,2.75808735]
[1754788281846,0.84629852,806.54,804.67,2.75808735]
[1754788282047,0.84629852,806.53,804.69,2.75808735]
[1754788282245,0.84629852,806.52,804.69,2.75808735]
[1754788282442,0.84629852,806.51,804.77,2.75808735]
[1754788282643,0.84629852,806.5,804.77,2.75808735]
[1754788282946,0.84629852,806.49,804.77,2.75808735]
[1754788283143,0.83509516,806.67,804.77,2.75808735]
[1754788283144,0.84629852,806.48,804.77,2.75808735]
[1754788283443,0.2159472,806.77,804.77,2.75808735]
[1754788283644,0.84611643,806.76,805.04,2.75808735]
[1754788283847,0.84611643,806.75,805.04,2.75808735]
[1754788284046,0.84611643,806.74,805.04,2.75808735]
[1754788284344,0.84611643,806.73,805.04,2.75808735]
[1754788284545,0.84611643,806.72,805.04,2.75808735]
[1754788284743,0.84611643,806.71,805.04,2.75808735]
[1754788284948,0.84611643,806.7,805.04,2.75808735]
[1754788285146,0.2159472,806.77,805.06,2.75808735]
[1754788285448,0.84609549,806.76,805.06,2.75808735]
[1754788285748,0.84609549,806.75,805.04,2.75808735]
[1754788286049,0.84609549,806.74,805.04,2.75808735]
[1754788286251,0.84609549,806.73,805.01,2.75808735]
[1754788286445,0.84609549,806.72,805.01,2.75808735]
[1754788286647,0.84609549,806.71,805.01,2.75808735]
[1754788286847,0.84609549,806.7,805.01,2.75808735]
[1754788287047,0.2159472,806.77,805.01,2.75808735]
[1754788287249,0.84608827,806.76,805.01,2.75808735]
[1754788287447,0.5,806.73,805.01,2.75808735]
[1754788287652,0.84608827,806.72,804.98,2.75808735]
[1754788289251,0.84608827,806.72,804.64,4.14808735]
[1754788290052,0.5,806.63,804.64,4.14808735]
[1754788290346,0.84608827,806.62,804.64,1.39]
[1754788290548,0.5,806.55,804.64,1.39]
[1754788291452,0.84623932,806.54,804.64,1.39]
[1754788291648,0.84623932,806.53,804.64,1.39]
[1754788291852,0.84623932,806.52,804.64,1.39]
[1754788292149,0.84623932,806.51,804.64,1.39]
[1754788292353,0.84623932,806.5,804.64,1.39]
[1754788292553,0.5,806.55,804.64,1.39]
[1754788292748,0.84621166,806.54,804.64,1.39]
[1754788292953,0.84621166,806.53,804.64,1.39]
[1754788293151,0.84621166,806.52,804.64,1.39]
[1754788293353,0.84621166,806.51,804.64,1.39]
[1754788293550,0.84621166,806.5,804.64,1.39]
[1754788293851,0.84621166,806.49,804.64,1.39]
[1754788294056,0.84621166,806.48,804.64,1.39]
[1754788294353,0.84621166,806.47,804.64,1.39]
[1754788294553,0.5,806.39,804.64,1.39]
[1754788294756,0.84621166,806.38,804.64,1.39]
[1754788294954,0.84621166,806.37,804.64,1.39]
[1754788295154,0.5,806.35,804.64,1.39]
[1754788295363,0.84621166,806.34,804.64,1.39]
[1754788295558,0.84621166,806.33,804.64,1.39]
[1754788295763,0.84621166,806.32,804.64,1.39]
[1754788295963,0.84621166,806.31,804.64,1.39]
[1754788296163,0.84621166,806.3,804.64,1.39]
[1754788296358,0.84621166,806.29,804.64,1.39]
[1754788296559,0.84621166,806.28,804.3,2.75808735]
[1754788296863,0.84621166,806.27,804.28,2.75808735]
[1754788297062,0.84621166,806.26,804.28,2.75808735]
[1754788297259,0.84621166,806.25,804.28,2.75808735]
[1754788297459,0.84621166,806.24,804.28,2.75808735]
[1754788297760,0.84621166,806.23,804.27,2.75808735]
[1754788297961,0.84621166,806.22,804.27,2.75808735]
[1754788298260,0.84621166,806.21,804.27,2.75808735]
[1754788298465,0.84621166,806.2,804.27,2.75808735]